bitfinex/quotes_BTCUSD_20240607
["timestamp","ask_amount","ask_price","bid_price","bid_amount"]
[1717718402094,0.34301883,70835.0,70834.0,0.00086]
[1717718402222,0.25855547,70835.0,70834.0,0.00086]
[1717718402455,0.21239805,70835.0,70834.0,0.00086]
[1717718402871,0.61929805,70835.0,70834.0,0.00086]
[1717718403123,0.60529805,70835.0,70834.0,0.00086]
[1717718403332,0.62529805,70835.0,70834.0,0.00086]
[1717718403547,0.65229805,70835.0,70834.0,0.00086]
[1717718403753,0.63929805,70835.0,70834.0,0.00086]
[1717718403959,0.63629805,70835.0,70834.0,0.00086]
[1717718404374,0.64329805,70835.0,70834.0,0.00086]
[1717718404802,0.62329805,70835.0,70834.0,0.14527893]
[1717718405016,0.0249,70835.0,70834.0,0.20557893]
[1717718405246,0.0671321,70835.0,70834.0,0.20557893]
[1717718405443,0.0249,70835.0,70834.0,0.20557893]
[1717718405699,0.018,70835.0,70834.0,0.20557893]
[1717718405912,0.018,70835.0,70834.0,0.14527893]
[1717718406129,0.0249,70835.0,70834.0,0.00086]
[1717718406335,0.018,70835.0,70834.0,0.07876]
[1717718406765,0.007,70835.0,70834.0,0.07876]
[1717718407194,0.000946,70836.0,70834.0,0.07876]
[1717718407398,0.011,70835.0,70834.0,0.07876]
[1717718407819,0.0139,70835.0,70834.0,0.07876]
[1717718408020,0.007,70835.0,70834.0,0.07876]
[1717718408448,0.000946,70836.0,70834.0,0.07876]
[1717718408646,0.0069,70835.0,70834.0,0.07876]
[1717718409068,0.000946,70836.0,70834.0,0.08076]
[1717718409269,0.0069,70835.0,70834.0,0.08076]
[1717718409905,0.000946,70836.0,70834.0,0.08076]
[1717718410487,0.000946,70836.0,70834.0,0.07876]
[1717718410927,0.0069,70835.0,70834.0,0.07976]
[1717718411849,0.0069,70835.0,70834.0,0.00186]
[1717718412085,0.0069,70835.0,70834.0,0.00086]
[1717718412514,0.0069,70835.0,70834.0,0.00186]
[1717718413407,0.03993712,70835.0,70834.0,0.00186]
[1717718414169,0.01993712,70835.0,70834.0,0.00186]
[1717718414375,0.0269,70835.0,70834.0,0.00186]
[1717718414985,0.0069,70835.0,70834.0,0.00186]
[1717718415573,0.0702378,70835.0,70834.0,0.00186]
[1717718416844,0.0633378,70835.0,70834.0,0.00186]
[1717718417047,0.0069,70835.0,70834.0,0.00186]
[1717718417219,0.04912391,70835.0,70834.0,0.00186]
[1717718417432,0.0069,70835.0,70834.0,0.00186]
[1717718417642,0.0069,70835.0,70834.0,0.22836]
[1717718417887,0.00659432,70835.0,70834.0,0.15256]
[1717718418106,0.00659432,70835.0,70834.0,0.22836]
[1717718418563,0.00754032,70836.0,70834.0,0.22836]
[1717718419126,0.00659432,70835.0,70834.0,0.07766]
[1717718419762,0.00659432,70835.0,70834.0,0.07666]
[1717718420196,0.00659432,70835.0,70834.0,0.07766]
[1717718420406,0.00659432,70835.0,70834.0,0.00186]
[1717718420617,0.00659432,70835.0,70834.0,0.00086]
[1717718421021,0.00659432,70835.0,70834.0,0.00186]
[1717718422226,0.00654409,70835.0,70834.0,0.00186]
[1717718425502,0.048768,70835.0,70834.0,0.00186]
[1717718426395,0.04876918,70835.0,70834.0,0.00186]
[1717718426828,0.04876918,70835.0,70834.0,0.001494]
[1717718427911,0.00654409,70835.0,70834.0,0.001494]
[1717718428344,0.04876918,70835.0,70834.0,0.081694]
[1717718428625,0.00654409,70835.0,70834.0,0.081694]
[1717718429247,0.00654409,70835.0,70834.0,0.001494]
[1717718429680,0.00749009,70836.0,70834.0,0.001494]
[1717718429906,0.00749009,70836.0,70835.0,0.2447]
[1717718433340,0.00749009,70836.0,70835.0,0.2457]
[1717718434044,0.00749009,70836.0,70835.0,0.0812]
[1717718434893,0.04971879,70836.0,70835.0,0.0812]
[1717718435521,0.00749009,70836.0,70835.0,0.0812]
[1717718436149,0.04971879,70836.0,70835.0,0.0812]
[1717718436993,0.00749009,70836.0,70835.0,0.0812]
[1717718437843,0.00718435,70836.0,70835.0,0.0812]
[1717718438068,0.00718435,70836.0,70835.0,0.001]
[1717718438512,0.04941419,70836.0,70835.0,0.001]
[1717718439638,0.00718435,70836.0,70835.0,0.001]
[1717718439847,0.07052912,70836.0,70835.0,0.001]
[1717718441133,0.09052912,70836.0,70835.0,0.001]
[1717718441601,0.09053099,70836.0,70835.0,0.001]
[1717718443549,0.30973099,70836.0,70829.0,0.06424392]
[1717718443766,0.04223336,70834.0,70829.0,0.06424392]
[1717718444250,0.00654409,70828.0,70827.0,0.1525]
[1717718445526,0.00754409,70828.0,70823.0,0.1628]
[1717718445741,0.00654409,70824.0,70823.0,0.1628]
[1717718446793,0.00654409,70823.0,70822.0,0.00086]
[1717718447220,0.0554285,70823.0,70822.0,0.00086]
[1717718448092,0.00754409,70823.0,70822.0,0.00086]
[1717718448350,0.04976096,70823.0,70822.0,0.00086]
[1717718449092,0.05076096,70823.0,70822.0,0.00086]
[1717718449301,0.00854409,70823.0,70822.0,0.00086]
[1717718456049,0.002,70823.0,70822.0,0.00086]
[1717718456296,0.002,70823.0,70822.0,0.07596]
[1717718456503,0.00194977,70823.0,70822.0,0.07596]
[1717718456651,0.00849386,70823.0,70822.0,0.07596]
[1717718457659,0.00194977,70823.0,70822.0,0.07596]
[1717718458604,0.00194977,70823.0,70822.0,0.22756]
[1717718458801,0.00194977,70823.0,70822.0,0.23396]
[1717718459266,0.00194977,70823.0,70822.0,0.22976]
[1717718465310,0.00849386,70823.0,70822.0,0.22976]
[1717718465745,0.00194977,70823.0,70822.0,0.22976]
[1717718465967,0.00094977,70823.0,70822.0,0.29006]
[1717718466423,0.00194977,70823.0,70822.0,0.29006]
[1717718467098,0.001,70823.0,70822.0,0.29006]
[1717718467317,0.002,70823.0,70822.0,0.29006]
[1717718467995,0.00184678,70823.0,70822.0,0.29006]
[1717718471300,0.00184678,70823.0,70822.0,0.30351591]
[1717718471496,0.00184678,70823.0,70822.0,0.29006]
[1717718472630,0.00184678,70823.0,70822.0,0.22976]
[1717718472848,0.00184678,70823.0,70822.0,0.29006]
[1717718476680,0.00184678,70823.0,70822.0,0.37063484]
[1717718477138,0.00184678,70823.0,70822.0,0.35717893]
[1717718477368,0.00184678,70823.0,70822.0,0.43247893]
[1717718479808,0.00184678,70823.0,70822.0,0.44593484]
[1717718482289,0.00654409,70835.0,70823.0,0.01345591]
[1717718482519,0.00718435,70836.0,70832.0,0.0759]
[1717718482750,0.00654409,70835.0,70832.0,0.0759]
[1717718483449,0.00654409,70835.0,70831.0,0.0785]
[1717718483611,0.01454409,70835.0,70831.0,0.0785]
[1717718483856,0.00854409,70835.0,70831.0,0.0785]
[1717718484052,0.01454409,70835.0,70831.0,0.0785]
[1717718484632,0.00854409,70835.0,70831.0,0.0785]
[1717718484855,0.00654409,70835.0,70832.0,0.01388]
[1717718485078,0.00654409,70833.0,70832.0,0.01388]
[1717718485318,0.00654409,70827.0,70824.0,0.14441893]
[1717718485994,0.16784409,70829.0,70824.0,0.14441893]
[1717718487080,0.00654409,70828.0,70824.0,0.14441893]
[1717718487308,0.001,70827.0,70824.0,0.14641893]
[1717718487519,0.00654409,70828.0,70824.0,0.14441893]
[1717718487732,0.00654409,70828.0,70824.0,0.14641893]
[1717718488193,0.001,70827.0,70824.0,0.14541893]
[1717718488650,0.00654409,70828.0,70824.0,0.14441893]
[1717718489332,0.00754409,70828.0,70824.0,0.14541893]
[1717718490212,0.00854409,70828.0,70824.0,0.14641893]
[1717718491501,0.002,70828.0,70825.0,0.0603]
[1717718491724,0.002,70828.0,70826.0,0.14441893]
[1717718492158,0.00854409,70828.0,70826.0,0.14441893]
[1717718492387,0.00654409,70827.0,70826.0,0.14441893]
[1717718492789,0.00854409,70828.0,70826.0,0.14441893]
[1717718492980,0.002,70828.0,70826.0,0.14441893]
[1717718493252,0.001,70828.0,70826.0,0.14441893]
[1717718493485,0.16784409,70829.0,70826.0,0.14441893]
[1717718493708,0.001,70827.0,70826.0,0.14541893]
[1717718494367,0.001,70827.0,70826.0,0.14641893]
[1717718494582,0.001,70827.0,70826.0,0.14541893]
[1717718495088,0.16784409,70829.0,70826.0,0.14441893]
[1717718495308,0.001,70828.0,70826.0,0.14541893]
[1717718495517,0.001,70828.0,70826.0,0.14641893]
[1717718495729,0.1623,70829.0,70826.0,0.14541893]
[1717718495947,0.16884409,70829.0,70826.0,0.14541893]
[1717718496169,0.001,70827.0,70826.0,0.14641893]
[1717718496602,0.00654409,70827.0,70826.0,0.14541893]
[1717718496816,0.00654409,70827.0,70826.0,0.14441893]
[1717718497027,0.001,70828.0,70826.0,0.14541893]
[1717718497250,0.001,70827.0,70826.0,0.14641893]
[1717718497466,0.001,70827.0,70826.0,0.16761115]
[1717718497894,0.001,70828.0,70826.0,0.16661115]
[1717718498606,0.001,70827.0,70826.0,0.16661115]
[1717718498816,0.002,70827.0,70826.0,0.16761115]
[1717718499253,0.001,70827.0,70826.0,0.16661115]
[1717718499465,0.001,70827.0,70826.0,0.14641893]
[1717718499904,0.001,70827.0,70826.0,0.14541893]
[1717718500116,0.00654409,70829.0,70826.0,0.14441893]
[1717718500296,0.001,70827.0,70826.0,0.14541893]
[1717718500543,0.001,70827.0,70826.0,0.14641893]
[1717718500752,0.001,70827.0,70826.0,0.14541893]
[1717718501208,0.002,70827.0,70826.0,0.14641893]
[1717718501639,0.001,70827.0,70826.0,0.14541893]
[1717718501834,0.001,70827.0,70826.0,0.14641893]
[1717718502477,0.001,70827.0,70826.0,0.14541893]
[1717718502886,0.002,70827.0,70826.0,0.14641893]
[1717718503307,0.002,70827.0,70826.0,0.16852241]
[1717718503514,0.002,70827.0,70826.0,0.18197832]
[1717718504760,0.002,70827.0,70826.0,0.15987484]
[1717718504969,0.002,70827.0,70826.0,0.14641893]
[1717718505613,0.002,70827.0,70826.0,0.38351893]
[1717718505808,0.002,70827.0,70826.0,0.39697484]
[1717718506021,0.002,70827.0,70826.0,0.39937484]
[1717718506662,0.002,70827.0,70826.0,0.31777484]
[1717718506873,0.002,70827.0,70826.0,0.15987484]
[1717718507077,0.002,70827.0,70826.0,0.32077484]
[1717718507512,0.002,70827.0,70826.0,0.32217484]
[1717718508322,0.002,70827.0,70826.0,0.40297484]
[1717718508526,0.002,70827.0,70826.0,0.38901893]
[1717718508946,0.002,70827.0,70826.0,0.44931893]
[1717718510219,0.002,70827.0,70826.0,0.20671893]
[1717718512934,0.002,70827.0,70826.0,0.43961893]
[1717718513363,0.002,70827.0,70826.0,0.45307484]
[1717718514442,0.002,70827.0,70826.0,0.44907484]
[1717718514858,0.002,70827.0,70826.0,0.37347484]
[1717718515074,0.002,70827.0,70826.0,0.37531893]
[1717718515314,0.002,70827.0,70826.0,0.44907484]
[1717718515527,0.002,70827.0,70826.0,0.37347484]
[1717718516208,0.002,70827.0,70826.0,0.44907484]
[1717718516665,0.002,70827.0,70826.0,0.43561893]
[1717718517719,0.002,70827.0,70826.0,0.37531893]
[1717718517926,0.002,70827.0,70826.0,0.43561893]
[1717718523502,0.002,70827.0,70826.0,1.42395593]
[1717718525725,0.002,70827.0,70826.0,0.85919193]
[1717718526805,0.002,70827.0,70826.0,0.87264784]
[1717718530311,0.002,70827.0,70826.0,0.85919193]
[1717718530963,0.002,70827.0,70826.0,0.87264784]
[1717718533012,0.002,70827.0,70826.0,1.42802984]
[1717718533218,0.002,70827.0,70826.0,1.37672984]
[1717718533458,0.002,70827.0,70826.0,1.65631459]
[1717718533693,0.002,70827.0,70826.0,1.59186126]
[1717718534408,0.000946,70835.0,70827.0,0.10345591]
[1717718534629,0.000946,70835.0,70834.0,0.78758091]
[1717718534862,0.000946,70835.0,70834.0,1.39661718]
[1717718535100,0.000946,70835.0,70834.0,1.61394984]
[1717718535317,0.000946,70835.0,70834.0,1.37464984]
[1717718535812,0.000946,70835.0,70834.0,1.45950269]
[1717718536217,0.001946,70835.0,70834.0,1.47150269]
[1717718536434,0.001946,70835.0,70834.0,1.45008497]
[1717718536649,0.001946,70835.0,70834.0,1.68198497]
[1717718536865,0.001946,70835.0,70834.0,1.45008497]
[1717718537284,0.000946,70835.0,70834.0,1.38864984]
[1717718538134,0.000946,70835.0,70834.0,1.48864984]
[1717718538342,0.000946,70835.0,70834.0,1.55391768]
[1717718539324,0.001946,70835.0,70834.0,1.52364984]
[1717718539938,0.001946,70835.0,70834.0,1.56591768]
[1717718540348,0.001946,70835.0,70834.0,1.52364984]
[1717718541665,0.001946,70835.0,70834.0,1.26134984]
[1717718541891,0.001946,70835.0,70834.0,1.52364984]
[1717718542862,0.001946,70835.0,70834.0,1.46334984]
[1717718543080,0.001946,70835.0,70834.0,1.32164984]
[1717718543300,0.001946,70835.0,70834.0,1.56674984]
[1717718543722,0.001946,70835.0,70834.0,1.5922937]
[1717718543936,0.001946,70835.0,70834.0,1.7942937]
[1717718544145,0.001946,70835.0,70834.0,1.5922937]
[1717718544357,0.001946,70835.0,70834.0,1.5319937]
[1717718544564,0.001946,70835.0,70834.0,1.5922937]
[1717718547527,0.001946,70835.0,70834.0,1.60896364]
[1717718549045,0.001946,70835.0,70834.0,1.32661364]
[1717718554279,0.001946,70835.0,70834.0,1.52861364]
[1717718556043,0.001946,70835.0,70834.0,1.67505627]
[1717718556484,0.001946,70835.0,70834.0,1.41275627]
[1717718556665,0.001946,70835.0,70834.0,1.67505627]
[1717718557137,0.001946,70835.0,70834.0,1.95740627]
[1717718558335,0.001946,70835.0,70834.0,1.89710627]
[1717718558568,0.001946,70835.0,70834.0,1.41275627]
[1717718558787,0.001946,70835.0,70834.0,1.47305627]
[1717718565967,0.001946,70835.0,70834.0,1.36818185]
[1717718566827,0.001946,70835.0,70834.0,1.35472594]
[1717718567044,0.001946,70835.0,70834.0,1.36818185]
[1717718567276,0.001946,70835.0,70834.0,0.93133799]
[1717718567506,0.001946,70835.0,70834.0,0.99163799]
[1717718567963,0.001946,70835.0,70834.0,0.97818208]
[1717718568186,0.001946,70835.0,70834.0,0.53553208]
[1717718568412,0.00849009,70835.0,70834.0,0.23350288]
[1717718568639,0.00849009,70835.0,70834.0,0.17244263]
[1717718569513,0.00849009,70835.0,70834.0,0.026]
[1717718569732,0.00849009,70835.0,70834.0,0.012]
[1717718570163,0.24759009,70835.0,70834.0,0.012]
[1717718570400,0.00654409,70833.0,70828.0,0.0603]
[1717718571534,0.00654409,70832.0,70828.0,0.0603]
[1717718572155,0.00654409,70832.0,70828.0,0.0733]
[1717718572403,0.2382,70831.0,70828.0,0.0853]
[1717718572634,0.2382,70831.0,70828.0,0.0733]
[1717718573099,0.2382,70831.0,70828.0,0.0853]
[1717718573316,0.2382,70831.0,70828.0,0.0733]
[1717718573533,0.2382,70831.0,70828.0,0.0723]
[1717718573778,0.2392,70831.0,70828.0,0.0723]
[1717718574000,0.2392,70831.0,70828.0,0.0863]
[1717718574658,0.2392,70831.0,70828.0,0.0723]
[1717718574888,0.2402,70831.0,70828.0,0.0833]
[1717718575775,0.2402,70831.0,70828.0,0.023]
[1717718576003,0.08854409,70831.0,70828.0,0.023]
[1717718576232,0.082,70831.0,70828.0,0.023]
[1717718577099,0.08854409,70831.0,70828.0,0.023]
[1717718577326,0.082,70831.0,70828.0,0.023]
[1717718578886,0.1616,70830.0,70828.0,0.023]
[1717718579149,0.00654409,70829.0,70828.0,0.023]
[1717718579346,0.2381,70829.0,70828.0,0.023]
[1717718580140,0.2381,70829.0,70826.0,0.141191]
[1717718580389,0.24464409,70829.0,70828.0,0.024]
[1717718580645,0.24464409,70829.0,70828.0,0.011]
[1717718580646,0.84612909,70829.0,70828.0,0.011]
[1717718580894,0.84612909,70829.0,70819.0,0.00086]
[1717718580895,0.00654409,70823.0,70819.0,0.00086]
[1717718581689,0.14774109,70823.0,70819.0,0.00086]
[1717718582386,0.1905452,70823.0,70819.0,0.00086]
[1717718582823,0.14774109,70823.0,70819.0,0.00086]
[1717718583037,0.20804109,70823.0,70819.0,0.00086]
[1717718583251,0.20804109,70823.0,70822.0,0.01086]
[1717718583252,0.44984109,70823.0,70822.0,0.01086]
[1717718583470,0.45084109,70823.0,70822.0,0.01086]
[1717718583686,0.45184109,70823.0,70822.0,0.01286]
[1717718583920,0.45184109,70823.0,70822.0,0.01386]
[1717718583921,0.46584109,70823.0,70822.0,0.01386]
[1717718584105,0.46484109,70823.0,70822.0,0.00186]
[1717718585192,0.45784109,70823.0,70822.0,0.00186]
[1717718585399,0.39754109,70823.0,70822.0,0.00186]
[1717718585653,0.40854109,70823.0,70822.0,0.00286]
[1717718588535,0.40054109,70823.0,70822.0,0.00186]
[1717718588975,0.39754109,70823.0,70822.0,0.00186]
[1717718589237,0.40054109,70823.0,70822.0,0.00186]
[1717718590226,0.40054109,70823.0,70822.0,0.00086]
[1717718590227,0.39254109,70823.0,70822.0,0.00086]
[1717718590702,0.39354109,70823.0,70822.0,0.00086]
[1717718590919,0.25234409,70823.0,70822.0,0.00086]
[1717718591558,0.2458,70823.0,70822.0,0.00086]
[1717718592008,0.001,70823.0,70822.0,0.00086]
[1717718592491,0.08534409,70827.0,70822.0,0.07308824]
[1717718592731,0.00854409,70823.0,70822.0,0.07308824]
[1717718592949,0.00654409,70823.0,70822.0,0.07308824]
[1717718593790,0.00854409,70823.0,70822.0,0.07308824]
[1717718594039,0.00954409,70823.0,70822.0,0.07308824]
[1717718594462,0.00854409,70823.0,70822.0,0.07308824]
[1717718594685,0.00954409,70823.0,70822.0,0.00686]
[1717718595751,0.00754409,70823.0,70822.0,0.00686]
[1717718595929,0.00754409,70823.0,70822.0,0.00986]
[1717718596433,0.14874109,70823.0,70822.0,0.00986]
[1717718599810,0.00754409,70823.0,70822.0,0.00986]
[1717718600240,0.2364,70823.0,70822.0,0.00986]
[1717718605683,0.001,70823.0,70822.0,0.00986]
[1717718606911,0.00754409,70823.0,70822.0,0.00986]
[1717718613556,0.02754409,70823.0,70822.0,0.00986]
[1717718613999,0.16874109,70823.0,70822.0,0.00986]
[1717718614234,0.46178212,70823.0,70822.0,0.00986]
[1717718614671,0.5039382,70823.0,70822.0,0.00986]
[1717718615460,0.7414382,70823.0,70822.0,0.00986]
[1717718616132,0.74144431,70823.0,70822.0,0.00986]
[1717718616328,0.7414674,70823.0,70822.0,0.00986]
[1717718616718,0.74146593,70823.0,70822.0,0.00986]
[1717718617375,0.7414677,70823.0,70822.0,0.00986]
[1717718618147,0.74146773,70823.0,70822.0,0.00986]
[1717718618362,0.69928823,70823.0,70822.0,0.00986]
[1717718618808,0.40624109,70823.0,70822.0,0.00986]
[1717718619021,0.69928793,70823.0,70822.0,0.00986]
[1717718621178,0.76255719,70823.0,70822.0,0.00986]
[1717718621864,0.69928793,70823.0,70822.0,0.00986]
[1717718622075,0.74255719,70823.0,70822.0,0.00986]
[1717718623051,0.69928793,70823.0,70822.0,0.00986]
[1717718623267,0.76255719,70823.0,70822.0,0.00986]
[1717718624323,0.69928793,70823.0,70822.0,0.00986]
[1717718625362,0.91938283,70823.0,70822.0,0.00986]
[1717718627536,0.91938113,70823.0,70822.0,0.00986]
[1717718629636,1.00382896,70823.0,70822.0,0.00986]
[1717718630058,0.69928793,70823.0,70822.0,0.00986]
[1717718630272,1.1222371,70823.0,70822.0,0.00986]
[1717718630853,0.81801756,70823.0,70822.0,0.00986]
[1717718631052,1.12231774,70823.0,70822.0,0.00986]
[1717718631260,1.12231758,70823.0,70822.0,0.00986]
[1717718631637,0.81801756,70823.0,70822.0,0.00986]
[1717718632045,1.12231331,70823.0,70822.0,0.00986]
[1717718632218,1.00358368,70823.0,70822.0,0.00986]
[1717718634037,1.00352116,70823.0,70822.0,0.00986]
[1717718635508,1.06382116,70823.0,70822.0,0.00986]
[1717718639268,0.9793714,70823.0,70822.0,0.00986]
[1717718639480,0.75958793,70823.0,70822.0,0.00986]
[1717718639727,0.85564132,70823.0,70822.0,0.00986]
[1717718639904,1.78619983,70823.0,70822.0,0.00986]
[1717718640109,1.80731096,70823.0,70822.0,0.00986]
[1717718640307,1.70719614,70823.0,70822.0,0.00986]
[1717718640508,1.76749614,70823.0,70822.0,0.00986]
[1717718641480,2.04989014,70823.0,70822.0,0.00986]
[1717718641706,0.16776609,70810.0,70809.0,0.00670241]
[1717718641923,0.56332838,70810.0,70809.0,0.00670241]
[1717718642141,0.50302838,70810.0,70809.0,0.00670241]
[1717718643272,0.46085405,70810.0,70809.0,0.00670241]
[1717718643685,0.46285405,70810.0,70809.0,0.03070241]
[1717718643950,0.44285405,70810.0,70809.0,0.03070241]
[1717718644368,0.16976609,70810.0,70809.0,0.03070241]
[1717718644587,0.14976609,70810.0,70809.0,0.03070241]
[1717718644821,0.16976609,70810.0,70809.0,0.03070241]
[1717718645023,0.14976609,70810.0,70809.0,0.03070241]
[1717718646118,0.16976609,70810.0,70809.0,0.03070241]
[1717718646371,0.14976609,70810.0,70809.0,0.03070241]
[1717718647535,0.16976609,70810.0,70809.0,0.03070241]
[1717718647751,0.14976609,70810.0,70809.0,0.03070241]
[1717718647966,0.16976609,70810.0,70809.0,0.03070241]
[1717718648593,0.14976609,70810.0,70809.0,0.03070241]
[1717718649018,0.16976609,70810.0,70809.0,0.03070241]
[1717718649474,0.14976609,70810.0,70809.0,0.03070241]
[1717718649660,0.16976609,70810.0,70809.0,0.03070241]
[1717718650434,0.19635141,70810.0,70809.0,0.03070241]
[1717718651743,0.25665141,70810.0,70809.0,0.03070241]
[1717718653683,0.14976609,70810.0,70809.0,0.03070241]
[1717718653938,0.21006609,70810.0,70809.0,0.03070241]
[1717718655422,0.14976609,70810.0,70809.0,0.03070241]
[1717718659056,0.16976609,70810.0,70809.0,0.03070241]
[1717718659264,0.14976609,70810.0,70809.0,0.03070241]
[1717718659483,0.19195836,70810.0,70809.0,0.03070241]
[1717718660337,0.14976609,70810.0,70809.0,0.03070241]
[1717718660955,0.19195836,70810.0,70809.0,0.03070241]
[1717718661386,0.14976609,70810.0,70809.0,0.03070241]
[1717718664389,0.16976609,70810.0,70809.0,0.03070241]
[1717718664591,0.14976609,70810.0,70809.0,0.03070241]
[1717718664797,0.23160077,70810.0,70809.0,0.03070241]
[1717718667243,0.25160077,70810.0,70809.0,0.03070241]
[1717718668247,0.23160077,70810.0,70809.0,0.03070241]
[1717718668886,0.25160077,70810.0,70809.0,0.03070241]
[1717718669110,0.46284973,70810.0,70809.0,0.03070241]
[1717718669539,0.505042,70810.0,70809.0,0.03070241]
[1717718674224,0.46284973,70810.0,70809.0,0.03070241]
[1717718674446,0.55435939,70810.0,70809.0,0.03070241]
[1717718674888,0.53435939,70810.0,70809.0,0.03070241]
[1717718676002,0.19906345,70810.0,70809.0,0.03070241]
[1717718676223,0.14976609,70810.0,70809.0,0.03070241]
[1717718679574,0.19198346,70810.0,70809.0,0.03070241]
[1717718681492,0.19292946,70810.0,70809.0,0.03070241]
[1717718682285,0.15071209,70810.0,70809.0,0.03070241]
[1717718683963,0.21403814,70810.0,70809.0,0.03070241]
[1717718684173,0.65614263,70810.0,70809.0,0.03070241]
[1717718684616,0.65627715,70810.0,70809.0,0.03070241]
[1717718685314,0.74082952,70810.0,70809.0,0.03070241]
[1717718686017,0.65627715,70810.0,70809.0,0.03070241]
[1717718686676,0.67627715,70810.0,70809.0,0.03070241]
[1717718686885,0.80878391,70810.0,70809.0,0.03070241]
[1717718687955,0.78878391,70810.0,70809.0,0.03070241]
[1717718688170,0.86908391,70810.0,70809.0,0.03070241]
[1717718689653,0.9536637,70810.0,70809.0,0.03070241]
[1717718689873,1.10928391,70810.0,70809.0,0.03070241]
[1717718691570,0.73277715,70810.0,70809.0,0.03070241]
[1717718694794,0.75277715,70810.0,70809.0,0.03070241]
[1717718695784,0.75112624,70810.0,70809.0,0.03070241]
[1717718699656,0.75123434,70810.0,70809.0,0.03070241]
[1717718700722,0.73123434,70810.0,70809.0,0.03070241]
[1717718700920,0.89635221,70810.0,70809.0,0.03070241]
[1717718701347,0.87635221,70810.0,70809.0,0.03070241]
[1717718701573,0.79985221,70810.0,70809.0,0.03070241]
[1717718701797,0.51351234,70810.0,70809.0,0.03070241]
[1717718702001,0.51351234,70810.0,70809.0,0.26250241]
[1717718702424,0.06792406,70810.0,70809.0,0.26250241]
[1717718702874,0.00449009,70810.0,70809.0,0.26250241]
[1717718703277,0.00449009,70810.0,70809.0,0.10980241]
[1717718703490,0.21772076,70810.0,70809.0,0.10980241]
[1717718703929,0.30229939,70810.0,70809.0,0.10980241]
[1717718704147,0.32229939,70810.0,70809.0,0.03070241]
[1717718704363,0.5307989,70810.0,70809.0,0.03070241]
[1717718704997,0.5107989,70810.0,70809.0,0.03070241]
[1717718705205,0.6520209,70810.0,70809.0,0.03070241]
[1717718705408,0.7323209,70810.0,70809.0,0.03070241]
[1717718707680,0.79665678,70810.0,70809.0,0.03070241]
[1717718707887,0.90237624,70810.0,70809.0,0.03070241]
[1717718710928,0.79665678,70810.0,70809.0,0.03070241]
[1717718711359,0.90237624,70810.0,70809.0,0.03070241]
[1717718711588,0.82207624,70810.0,70809.0,0.03070241]
[1717718711796,0.88237624,70810.0,70809.0,0.03070241]
[1717718712002,0.77665678,70810.0,70809.0,0.03070241]
[1717718712212,0.71635678,70810.0,70809.0,0.03070241]
[1717718713256,0.71730278,70810.0,70809.0,0.03070241]
[1717718713466,0.6479669,70810.0,70809.0,0.03070241]
[1717718713665,0.35488876,70810.0,70809.0,0.03070241]
[1717718713878,0.64797596,70810.0,70809.0,0.03070241]
[1717718716205,0.64797596,70810.0,70809.0,0.27620241]
[1717718716428,0.20564104,70810.0,70809.0,0.27620241]
[1717718716604,0.142168,70810.0,70809.0,0.27620241]
[1717718716805,0.20564104,70810.0,70809.0,0.27620241]
[1717718717637,0.06441904,70810.0,70809.0,0.27620241]
[1717718719444,0.06441391,70810.0,70809.0,0.27620241]
[1717718720930,0.000946,70810.0,70809.0,0.27620241]
[1717718722237,0.29402467,70810.0,70809.0,0.27620241]
[1717718723268,0.37864855,70810.0,70809.0,0.27620241]
[1717718723981,0.000946,70810.0,70809.0,0.27620241]
[1717718724422,0.06441548,70810.0,70809.0,0.27620241]
[1717718724649,0.04326014,70810.0,70809.0,0.27620241]
[1717718724865,0.000946,70810.0,70809.0,0.27620241]
[1717718725288,0.04325796,70810.0,70809.0,0.27620241]
[1717718726194,0.04325855,70810.0,70809.0,0.27620241]
[1717718727865,0.000946,70810.0,70809.0,0.27620241]
[1717718744324,0.142168,70810.0,70809.0,0.03070241]
[1717718744530,0.375068,70810.0,70809.0,0.03070241]
[1717718744993,0.41736442,70810.0,70809.0,0.03070241]
[1717718745425,0.41736479,70810.0,70809.0,0.03070241]
[1717718745859,0.34176479,70810.0,70809.0,0.03070241]
[1717718746088,0.375868,70810.0,70809.0,0.03070241]
[1717718756900,0.41748257,70810.0,70809.0,0.03070241]
[1717718757123,0.71487653,70810.0,70809.0,0.03070241]
[1717718757333,1.00795177,70810.0,70809.0,0.03070241]
[1717718758660,1.00759776,70810.0,70809.0,0.03070241]
[1717718760385,0.92298748,70810.0,70809.0,0.03070241]
[1717718760832,1.00760064,70810.0,70809.0,0.03070241]
[1717718761013,1.0073182,70810.0,70809.0,0.03070241]
[1717718761791,1.00742825,70810.0,70809.0,0.03070241]
[1717718764546,0.92281509,70810.0,70809.0,0.03070241]
[1717718764759,1.00885591,70810.0,70809.0,0.03070241]
[1717718765627,0.59217365,70810.0,70809.0,0.03070241]
[1717718765843,0.59217365,70810.0,70809.0,0.19340241]
[1717718765844,0.04258511,70810.0,70809.0,0.19340241]
[1717718766081,0.04258511,70810.0,70809.0,0.27390241]
[1717718766082,0.00066356,70810.0,70809.0,0.27390241]
[1717718766296,0.04296909,70810.0,70809.0,0.27390241]
[1717718766526,0.00066356,70810.0,70809.0,0.27390241]
[1717718772260,0.00066356,70810.0,70809.0,0.11120241]
[1717718773761,0.06412296,70810.0,70809.0,0.11120241]
[1717718774624,0.06412296,70810.0,70809.0,0.11081858]
[1717718775301,0.44914496,70810.0,70809.0,0.03031858]
[1717718775516,0.67876248,70810.0,70809.0,0.03031858]
[1717718775945,1.01942109,70810.0,70809.0,0.03031858]
[1717718777844,1.09745567,70810.0,70809.0,0.03031858]
[1717718778879,1.01942109,70810.0,70809.0,0.03031858]
[1717718779239,1.01947433,70810.0,70809.0,0.03031858]
[1717718779442,0.72071074,70810.0,70809.0,0.03031858]
[1717718779645,1.01884111,70810.0,70809.0,0.03031858]
[1717718781666,0.77504111,70810.0,70809.0,0.03031858]
[1717718781864,0.69001905,70810.0,70809.0,0.03031858]
[1717718782290,0.68998039,70810.0,70809.0,0.03031858]
[1717718782985,0.77328277,70810.0,70809.0,0.03031858]
[1717718783280,0.93939537,70810.0,70809.0,0.03031858]
[1717718783667,1.2324864,70810.0,70809.0,0.03031858]
[1717718784389,1.1098071,70810.0,70809.0,0.03031858]
[1717718784599,1.0039945,70810.0,70809.0,0.03031858]
[1717718785079,1.76165471,70810.0,70809.0,0.03031858]